[Event "Titled Tuesday Blitz October 11 Early 2022"]
[White "Mrudul Dehankar"]
[Black "Cnejev, Vladimir-Alexandru"]
[WhiteFideId "25096990"]
[BlackFideId "1260898"]
[WhiteElo "2068"]
[BlackElo "2193"]
[Result "0-1"]
[Round "04"]
[TimeControl "180+1"]
[Date "2022.10.12"]
[WhiteClock "0:00:02"]
[BlackClock "0:00:15"]

1. e4 {[%clk 0:02:53]}  e5 {[%clk 0:02:58]} 2. Nf3 {[%clk 0:02:52]}  Nc6 {[%clk 0:02:58]} 3. Bb5 {[%clk 0:02:53]}  a6 {[%clk 0:02:57]} 4. Ba4 {[%clk 0:02:53]}  b5 {[%clk 0:02:57]} 5. Bb3 {[%clk 0:02:53]}  Bb7 {[%clk 0:02:58]} 6. O-O {[%clk 0:02:52]}  Be7 {[%clk 0:02:59]} 7. c3 {[%clk 0:02:52]}  Nf6 {[%clk 0:02:59]} 8. Re1 {[%clk 0:02:50]}  O-O {[%clk 0:02:58]} 9. d4 {[%clk 0:02:50]}  d6 {[%clk 0:02:59]} 10. Nbd2 {[%clk 0:02:49]}  h6 {[%clk 0:02:57]} 11. a4 {[%clk 0:02:49]}  Re8 {[%clk 0:02:56]} 12. Bc2 {[%clk 0:02:46]}  Bf8 {[%clk 0:02:55]} 13. Nf1 {[%clk 0:02:46]}  exd4 {[%clk 0:02:55]} 14. cxd4 {[%clk 0:02:31]}  Nb4 {[%clk 0:02:55]} 15. d5 {[%clk 0:02:30]}  c6 {[%clk 0:02:40]} 16. dxc6 {[%clk 0:02:13]}  Bxc6 {[%clk 0:02:41]} 17. Bb1 {[%clk 0:01:56]}  Bxe4 {[%clk 0:02:26]} 18. Bxe4 {[%clk 0:01:39]}  Nxe4 {[%clk 0:02:27]} 19. Nd4 {[%clk 0:01:30]}  bxa4 {[%clk 0:01:53]} 20. Qxa4 {[%clk 0:01:21]}  d5 {[%clk 0:01:52]} 21. Be3 {[%clk 0:01:14]}  Rc8 {[%clk 0:01:45]} 22. Rec1 {[%clk 0:01:11]}  Qf6 {[%clk 0:01:35]} 23. f3 {[%clk 0:00:32]}  Rxc1 {[%clk 0:00:24]} 24. Rxc1 {[%clk 0:00:28]}  Nc5 {[%clk 0:00:23]} 25. Qxb4 {[%clk 0:00:14]}  Nd3 {[%clk 0:00:23]} 26. Qa4 {[%clk 0:00:10]}  Rxe3 {[%clk 0:00:20]} 27. Nxe3 {[%clk 0:00:05]}  Nxc1 {[%clk 0:00:20]} 28. Nxd5 {[%clk 0:00:06]}  Qxd4+ {[%clk 0:00:18]} 29. Qxd4 {[%clk 0:00:05]}  Ne2+ {[%clk 0:00:18]} 30. Kf2 {[%clk 0:00:06]}  Nxd4 {[%clk 0:00:19]} 31. Ke3 {[%clk 0:00:06]}  Ne6 {[%clk 0:00:19]} 32. Kd3 {[%clk 0:00:06]}  Bd6 {[%clk 0:00:18]} 33. Kc4 {[%clk 0:00:06]}  Kf8 {[%clk 0:00:18]} 34. g3 {[%clk 0:00:06]}  Ke8 {[%clk 0:00:19]} 35. Ne3 {[%clk 0:00:05]}  g6 {[%clk 0:00:18]} 36. Kd5 {[%clk 0:00:05]}  Kd7 {[%clk 0:00:18]} 37. Nc4 {[%clk 0:00:06]}  Nc7+ {[%clk 0:00:19]} 38. Kd4 {[%clk 0:00:06]}  Kc6 {[%clk 0:00:19]} 39. b3 {[%clk 0:00:05]}  Ne6+ {[%clk 0:00:17]} 40. Kc3 {[%clk 0:00:05]}  Bc7 {[%clk 0:00:15]} 41. b4 {[%clk 0:00:05]}  f5 {[%clk 0:00:14]} 42. Nb2 {[%clk 0:00:03]}  Kd5 {[%clk 0:00:14]} 43. Nd3 {[%clk 0:00:02]}  Be5+ {[%clk 0:00:14]} 44. Kc2 {[%clk 0:00:02]}  Nd4+ {[%clk 0:00:15]} 0-1


[Site "https://www.chess.com"]

[Event "Titled Tuesday Blitz October 11 Early 2022"]
[White "Nakamura, Hikaru"]
[Black "Moroni, Luca Jr"]
[WhiteFideId "2016192"]
[BlackFideId "865834"]
[WhiteElo "2909"]
[BlackElo "2573"]
[Result "1-0"]
[Round "04"]
[TimeControl "180+1"]
[Date "2022.10.11"]
[WhiteClock "0:00:13"]
[BlackClock "0:00:07"]

1. Nf3 {[%clk 0:03:00]}  d6 {[%clk 0:03:00]} 2. d4 {[%clk 0:02:59]}  g6 {[%clk 0:03:00]} 3. e4 {[%clk 0:02:58]}  Bg7 {[%clk 0:03:01]} 4. Bc4 {[%clk 0:02:57]}  Nf6 {[%clk 0:03:01]} 5. Qe2 {[%clk 0:02:57]}  O-O {[%clk 0:03:02]} 6. e5 {[%clk 0:02:55]}  dxe5 {[%clk 0:03:02]} 7. dxe5 {[%clk 0:02:55]}  Nd5 {[%clk 0:03:03]} 8. h3 {[%clk 0:02:54]}  c6 {[%clk 0:03:03]} 9. O-O {[%clk 0:02:54]}  Be6 {[%clk 0:03:04]} 10. Ng5 {[%clk 0:02:46]}  Nd7 {[%clk 0:03:04]} 11. f4 {[%clk 0:02:36]}  b5 {[%clk 0:02:58]} 12. Nxe6 {[%clk 0:02:24]}  fxe6 {[%clk 0:02:58]} 13. Bd3 {[%clk 0:02:21]}  Qb6+ {[%clk 0:02:37]} 14. Kh1 {[%clk 0:02:21]}  Rf7 {[%clk 0:02:25]} 15. Nc3 {[%clk 0:02:12]}  Nxc3 {[%clk 0:01:43]} 16. bxc3 {[%clk 0:02:13]}  Qc7 {[%clk 0:01:41]} 17. Bd2 {[%clk 0:02:01]}  Nb6 {[%clk 0:01:39]} 18. h4 {[%clk 0:01:59]}  Nd7 {[%clk 0:01:26]} 19. c4 {[%clk 0:01:41]}  a6 {[%clk 0:01:24]} 20. g3 {[%clk 0:01:33]}  Nc5 {[%clk 0:01:20]} 21. Be3 {[%clk 0:01:30]}  Nxd3 {[%clk 0:01:18]} 22. cxd3 {[%clk 0:01:26]}  Rd8 {[%clk 0:01:10]} 23. Kg2 {[%clk 0:01:21]}  Rff8 {[%clk 0:01:10]} 24. a4 {[%clk 0:01:21]}  bxc4 {[%clk 0:00:53]} 25. dxc4 {[%clk 0:01:21]}  c5 {[%clk 0:00:50]} 26. a5 {[%clk 0:01:09]}  Rd7 {[%clk 0:00:48]} 27. Qg4 {[%clk 0:01:03]}  Kf7 {[%clk 0:00:46]} 28. Rfb1 {[%clk 0:01:01]}  Rfd8 {[%clk 0:00:41]} 29. Rb6 {[%clk 0:00:58]}  Rd3 {[%clk 0:00:40]} 30. Qxe6+ {[%clk 0:00:55]}  Kf8 {[%clk 0:00:40]} 31. Bf2 {[%clk 0:00:50]}  Rd2 {[%clk 0:00:38]} 32. Rab1 {[%clk 0:00:49]}  Re8 {[%clk 0:00:23]} 33. h5 {[%clk 0:00:29]}  gxh5 {[%clk 0:00:19]} 34. Rh1 {[%clk 0:00:28]}  Qd8 {[%clk 0:00:18]} 35. Qf5+ {[%clk 0:00:27]}  Kg8 {[%clk 0:00:18]} 36. Qxh5 {[%clk 0:00:28]}  Qd4 {[%clk 0:00:14]} 37. Qxe8+ {[%clk 0:00:15]}  Bf8 {[%clk 0:00:13]} 38. Rf1 {[%clk 0:00:15]}  Qe4+ {[%clk 0:00:13]} 39. Kg1 {[%clk 0:00:15]}  Qf3 {[%clk 0:00:07]} 40. Qc6 {[%clk 0:00:13]} 1-0


[Site "https://www.chess.com"]

[Event "Titled Tuesday Blitz October 11 Early 2022"]
[White "Namitbir Singh Walia"]
[Black "Colas, Joshua"]
[WhiteFideId "35071068"]
[BlackFideId "2044447"]
[WhiteElo "2239"]
[BlackElo "2347"]
[Result "0-1"]
[Round "04"]
[TimeControl "180+1"]
[Date "2022.10.12"]
[WhiteClock "0:00:02"]
[BlackClock "0:01:07"]

1. d4 {[%clk 0:03:00]}  Nf6 {[%clk 0:02:58]} 2. c4 {[%clk 0:03:00]}  e6 {[%clk 0:02:58]} 3. Nf3 {[%clk 0:03:00]}  b6 {[%clk 0:02:57]} 4. g3 {[%clk 0:03:00]}  Bb7 {[%clk 0:02:58]} 5. Bg2 {[%clk 0:03:00]}  Bb4+ {[%clk 0:02:58]} 6. Bd2 {[%clk 0:03:00]}  c5 {[%clk 0:02:55]} 7. O-O {[%clk 0:02:57]}  O-O {[%clk 0:02:54]} 8. a3 {[%clk 0:02:37]}  Bxd2 {[%clk 0:02:54]} 9. Qxd2 {[%clk 0:02:38]}  cxd4 {[%clk 0:02:50]} 10. Nxd4 {[%clk 0:02:38]}  Bxg2 {[%clk 0:02:50]} 11. Kxg2 {[%clk 0:02:39]}  Qc8 {[%clk 0:02:51]} 12. b3 {[%clk 0:02:35]}  a6 {[%clk 0:02:38]} 13. Nc3 {[%clk 0:02:34]}  Qb7+ {[%clk 0:02:38]} 14. Nf3 {[%clk 0:02:34]}  b5 {[%clk 0:02:35]} 15. c5 {[%clk 0:02:21]}  b4 {[%clk 0:02:29]} 16. axb4 {[%clk 0:01:59]}  Qxb4 {[%clk 0:02:27]} 17. Qd4 {[%clk 0:01:56]}  Qxb3 {[%clk 0:02:22]} 18. Rfb1 {[%clk 0:01:43]}  Qc2 {[%clk 0:02:22]} 19. Ra2 {[%clk 0:01:06]}  Qf5 {[%clk 0:02:12]} 20. e4 {[%clk 0:01:03]}  Qh5 {[%clk 0:02:09]} 21. Qe5 {[%clk 0:00:56]}  Nc6 {[%clk 0:01:53]} 22. Qxh5 {[%clk 0:00:54]}  Nxh5 {[%clk 0:01:54]} 23. e5 {[%clk 0:00:45]}  f6 {[%clk 0:01:51]} 24. Rb7 {[%clk 0:00:34]}  fxe5 {[%clk 0:01:42]} 25. Rxd7 {[%clk 0:00:32]}  e4 {[%clk 0:01:43]} 26. Nxe4 {[%clk 0:00:19]}  Rxf3 {[%clk 0:01:43]} 27. Rd6 {[%clk 0:00:16]}  Ne5 {[%clk 0:01:35]} 28. Rxe6 {[%clk 0:00:16]}  Rf5 {[%clk 0:01:29]} 29. Nd6 {[%clk 0:00:15]}  Rg5 {[%clk 0:01:28]} 30. Ra4 {[%clk 0:00:08]}  Ng6 {[%clk 0:01:26]} 31. h4 {[%clk 0:00:08]}  Rxc5 {[%clk 0:01:25]} 32. Ne4 {[%clk 0:00:06]}  Re5 {[%clk 0:01:22]} 33. Rxe5 {[%clk 0:00:04]}  Nxe5 {[%clk 0:01:23]} 34. Ra5 {[%clk 0:00:04]}  Re8 {[%clk 0:01:21]} 35. Nd6 {[%clk 0:00:01]}  Re6 {[%clk 0:01:17]} 36. Rxa6 {[%clk 0:00:02]}  Nd7 {[%clk 0:01:16]} 37. Ra8+ {[%clk 0:00:02]}  Nf8 {[%clk 0:01:17]} 38. Nf5 {[%clk 0:00:02]}  Nf6 {[%clk 0:01:14]} 39. Ra7 {[%clk 0:00:02]}  N6d7 {[%clk 0:01:14]} 40. Rb7 {[%clk 0:00:02]}  g6 {[%clk 0:01:14]} 41. Ne3 {[%clk 0:00:03]}  Rb6 {[%clk 0:01:12]} 42. Rc7 {[%clk 0:00:03]}  Nf6 {[%clk 0:01:12]} 43. Ra7 {[%clk 0:00:01]}  Rb2 {[%clk 0:01:11]} 44. Nc4 {[%clk 0:00:01]}  Rc2 {[%clk 0:01:10]} 45. Nd6 {[%clk 0:00:02]}  Rd2 {[%clk 0:01:10]} 46. Nf7 {[%clk 0:00:02]}  Ng4 {[%clk 0:01:07]} 0-1


[Site "https://www.chess.com"]

[Event "Titled Tuesday Blitz October 11 Early 2022"]
[White "Osiecki, Stanislaw"]
[Black "Aliaga Fernandez, Ingrid Y"]
[WhiteFideId "1102990"]
[BlackFideId "3802191"]
[WhiteElo "2088"]
[BlackElo "2135"]
[Result "1-0"]
[Round "04"]
[TimeControl "180+1"]
[Date "2022.10.12"]
[WhiteClock "0:02:34"]
[BlackClock "0:01:48"]

1. e4 {[%clk 0:03:00]}  c5 {[%clk 0:02:57]} 2. c3 {[%clk 0:03:00]}  Nf6 {[%clk 0:02:55]} 3. e5 {[%clk 0:03:00]}  Nd5 {[%clk 0:02:55]} 4. d4 {[%clk 0:03:00]}  cxd4 {[%clk 0:02:56]} 5. Nf3 {[%clk 0:03:00]}  e6 {[%clk 0:02:56]} 6. cxd4 {[%clk 0:03:00]}  Nc6 {[%clk 0:02:57]} 7. a3 {[%clk 0:03:00]}  d6 {[%clk 0:02:56]} 8. Bd3 {[%clk 0:03:01]}  Be7 {[%clk 0:02:50]} 9. O-O {[%clk 0:03:00]}  h6 {[%clk 0:02:49]} 10. Qe2 {[%clk 0:03:00]}  Bd7 {[%clk 0:02:31]} 11. Bd2 {[%clk 0:02:58]}  Qb6 {[%clk 0:02:30]} 12. Bc3 {[%clk 0:02:50]}  dxe5 {[%clk 0:02:27]} 13. dxe5 {[%clk 0:02:50]}  a6 {[%clk 0:02:15]} 14. Qe4 {[%clk 0:02:48]}  O-O-O {[%clk 0:01:57]} 15. b4 {[%clk 0:02:37]}  Na7 {[%clk 0:01:48]} 16. Bd4 {[%clk 0:02:34]} 1-0


[Site "https://www.chess.com"]

[Event "Titled Tuesday Blitz October 11 Early 2022"]
[White "Ovezdurdyyeva, Jemal"]
[Black "Borgaonkar Akshay"]
[WhiteFideId "14001888"]
[BlackFideId "25639110"]
[WhiteElo "1961"]
[BlackElo "2063"]
[Result "0-1"]
[Round "04"]
[TimeControl "180+1"]
[Date "2022.10.12"]
[WhiteClock "0:00:49"]
[BlackClock "0:01:16"]

1. e4 {[%clk 0:03:00]}  c5 {[%clk 0:02:59]} 2. Nf3 {[%clk 0:03:00]}  e6 {[%clk 0:02:59]} 3. c3 {[%clk 0:02:58]}  Nf6 {[%clk 0:02:58]} 4. Bd3 {[%clk 0:02:54]}  d5 {[%clk 0:02:55]} 5. exd5 {[%clk 0:02:54]}  Qxd5 {[%clk 0:02:53]} 6. Bc2 {[%clk 0:02:53]}  b6 {[%clk 0:02:53]} 7. O-O {[%clk 0:02:43]}  Bb7 {[%clk 0:02:53]} 8. d4 {[%clk 0:02:40]}  Nbd7 {[%clk 0:02:43]} 9. Nbd2 {[%clk 0:02:17]}  cxd4 {[%clk 0:02:39]} 10. cxd4 {[%clk 0:02:15]}  Bd6 {[%clk 0:02:37]} 11. Re1 {[%clk 0:02:04]}  O-O {[%clk 0:02:35]} 12. Ne4 {[%clk 0:02:01]}  Be7 {[%clk 0:02:16]} 13. Bg5 {[%clk 0:01:53]}  h6 {[%clk 0:02:10]} 14. Bh4 {[%clk 0:01:49]}  Rac8 {[%clk 0:02:04]} 15. Bd3 {[%clk 0:01:34]}  Qh5 {[%clk 0:01:57]} 16. Qe2 {[%clk 0:01:04]}  Rfe8 {[%clk 0:01:53]} 17. Bg3 {[%clk 0:01:02]}  Nxe4 {[%clk 0:01:49]} 18. Bxe4 {[%clk 0:01:02]}  Bxe4 {[%clk 0:01:50]} 19. Qxe4 {[%clk 0:01:03]}  Nf6 {[%clk 0:01:51]} 20. Qb7 {[%clk 0:01:02]}  Qd5 {[%clk 0:01:40]} 21. Qxa7 {[%clk 0:00:57]}  Bb4 {[%clk 0:01:37]} 22. Re5 {[%clk 0:00:52]}  Qc6 {[%clk 0:01:36]} 23. h3 {[%clk 0:00:51]}  Ra8 {[%clk 0:01:32]} 24. d5 {[%clk 0:00:50]}  Nxd5 {[%clk 0:01:25]} 25. Nd4 {[%clk 0:00:49]}  Qc8 {[%clk 0:01:16]} 0-1


[Site "https://www.chess.com"]

[Event "Titled Tuesday Blitz October 11 Early 2022"]
[White "Ozer, Omer Faruk"]
[Black "Begunov, Konstantin"]
[WhiteFideId "6354564"]
[BlackFideId "4118510"]
[WhiteElo "2260"]
[BlackElo "2225"]
[Result "1-0"]
[Round "04"]
[TimeControl "180+1"]
[Date "2022.10.12"]
[WhiteClock "0:00:39"]
[BlackClock "0:00:02"]

1. e4 {[%clk 0:02:59]}  c5 {[%clk 0:02:59]} 2. Nf3 {[%clk 0:02:56]}  d6 {[%clk 0:03:00]} 3. d4 {[%clk 0:02:53]}  cxd4 {[%clk 0:03:01]} 4. Qxd4 {[%clk 0:02:53]}  Nc6 {[%clk 0:02:57]} 5. Bb5 {[%clk 0:02:53]}  Bd7 {[%clk 0:02:55]} 6. Bxc6 {[%clk 0:02:52]}  Bxc6 {[%clk 0:02:55]} 7. Nc3 {[%clk 0:02:52]}  Nf6 {[%clk 0:02:53]} 8. Bg5 {[%clk 0:02:51]}  e6 {[%clk 0:02:51]} 9. O-O-O {[%clk 0:02:50]}  Be7 {[%clk 0:02:51]} 10. Rhe1 {[%clk 0:02:45]}  O-O {[%clk 0:02:49]} 11. Qd2 {[%clk 0:02:45]}  Qa5 {[%clk 0:02:16]} 12. Nd4 {[%clk 0:02:39]}  Rfc8 {[%clk 0:02:11]} 13. f3 {[%clk 0:02:23]}  b5 {[%clk 0:02:00]} 14. Kb1 {[%clk 0:02:10]}  b4 {[%clk 0:01:59]} 15. Nce2 {[%clk 0:02:10]}  Nxe4 {[%clk 0:01:45]} 16. fxe4 {[%clk 0:02:09]}  Bxg5 {[%clk 0:01:45]} 17. Qd3 {[%clk 0:02:09]}  Bb7 {[%clk 0:01:35]} 18. Nb3 {[%clk 0:02:07]}  Qc7 {[%clk 0:01:31]} 19. Ned4 {[%clk 0:02:04]}  Qb6 {[%clk 0:01:15]} 20. Rf1 {[%clk 0:01:45]}  Ba6 {[%clk 0:01:07]} 21. Qg3 {[%clk 0:01:44]}  Bxf1 {[%clk 0:01:04]} 22. Rxf1 {[%clk 0:01:42]}  Be7 {[%clk 0:00:53]} 23. Qg4 {[%clk 0:01:32]}  Bf8 {[%clk 0:00:47]} 24. Rxf7 {[%clk 0:01:31]}  d5 {[%clk 0:00:19]} 25. Rd7 {[%clk 0:01:15]}  dxe4 {[%clk 0:00:19]} 26. Nxe6 {[%clk 0:01:08]}  Qg1+ {[%clk 0:00:17]} 27. Rd1 {[%clk 0:01:08]}  Qf2 {[%clk 0:00:15]} 28. Qxe4 {[%clk 0:01:05]}  Re8 {[%clk 0:00:14]} 29. Qd5 {[%clk 0:01:01]}  Qf7 {[%clk 0:00:13]} 30. Nc7 {[%clk 0:00:45]}  Qxd5 {[%clk 0:00:13]} 31. Nxd5 {[%clk 0:00:46]}  Rad8 {[%clk 0:00:12]} 32. c4 {[%clk 0:00:47]}  bxc3 {[%clk 0:00:09]} 33. bxc3 {[%clk 0:00:48]}  Bd6 {[%clk 0:00:08]} 34. h3 {[%clk 0:00:47]}  Bg3 {[%clk 0:00:07]} 35. Rd3 {[%clk 0:00:46]}  Be5 {[%clk 0:00:06]} 36. c4 {[%clk 0:00:41]}  Rf8 {[%clk 0:00:06]} 37. Rd2 {[%clk 0:00:40]}  Rf1+ {[%clk 0:00:04]} 38. Kc2 {[%clk 0:00:40]}  Re8 {[%clk 0:00:02]} 39. Re2 {[%clk 0:00:39]} 1-0


[Site "https://www.chess.com"]

[Event "Titled Tuesday Blitz October 11 Early 2022"]
[White "Pakleza, Zbigniew"]
[Black "Titichoca Daza, Daniel"]
[WhiteFideId "1119290"]
[BlackFideId "3309550"]
[WhiteElo "2411"]
[BlackElo "2105"]
[Result "0-1"]
[Round "04"]
[TimeControl "180+1"]
[Date "2022.10.11"]
[WhiteClock "0:00:01"]
[BlackClock "0:00:36"]

1. d4 {[%clk 0:03:00]}  d5 {[%clk 0:02:51]} 2. Bf4 {[%clk 0:03:00]}  Nf6 {[%clk 0:02:50]} 3. e3 {[%clk 0:03:00]}  e6 {[%clk 0:02:50]} 4. Nd2 {[%clk 0:03:00]}  Bd6 {[%clk 0:02:51]} 5. Bg3 {[%clk 0:03:01]}  c5 {[%clk 0:02:52]} 6. c3 {[%clk 0:03:00]}  Qc7 {[%clk 0:02:52]} 7. Ngf3 {[%clk 0:02:58]}  Nbd7 {[%clk 0:02:52]} 8. c4 {[%clk 0:02:58]}  cxd4 {[%clk 0:02:49]} 9. Nxd4 {[%clk 0:02:57]}  Bxg3 {[%clk 0:02:47]} 10. hxg3 {[%clk 0:02:58]}  O-O {[%clk 0:02:47]} 11. Rc1 {[%clk 0:02:52]}  Qb6 {[%clk 0:02:46]} 12. Qc2 {[%clk 0:02:41]}  h6 {[%clk 0:02:41]} 13. Be2 {[%clk 0:02:39]}  Ne5 {[%clk 0:02:27]} 14. c5 {[%clk 0:02:25]}  Qd8 {[%clk 0:02:24]} 15. b4 {[%clk 0:02:18]}  Ng6 {[%clk 0:02:22]} 16. O-O {[%clk 0:02:01]}  e5 {[%clk 0:02:21]} 17. Nb5 {[%clk 0:01:50]}  h5 {[%clk 0:02:13]} 18. Nd6 {[%clk 0:01:44]}  h4 {[%clk 0:02:12]} 19. gxh4 {[%clk 0:01:36]}  Nxh4 {[%clk 0:02:10]} 20. g3 {[%clk 0:01:33]}  Ng6 {[%clk 0:02:03]} 21. Rfd1 {[%clk 0:01:08]}  Rb8 {[%clk 0:02:00]} 22. Nxc8 {[%clk 0:01:05]}  Qxc8 {[%clk 0:01:57]} 23. Bf1 {[%clk 0:01:01]}  Qg4 {[%clk 0:01:56]} 24. Bg2 {[%clk 0:00:57]}  e4 {[%clk 0:01:54]} 25. Nf1 {[%clk 0:00:45]}  Ne5 {[%clk 0:01:51]} 26. Nh2 {[%clk 0:00:44]}  Qh5 {[%clk 0:01:49]} 27. Qc3 {[%clk 0:00:32]}  Rfe8 {[%clk 0:01:48]} 28. b5 {[%clk 0:00:31]}  Nf3+ {[%clk 0:01:31]} 29. Bxf3 {[%clk 0:00:28]}  exf3 {[%clk 0:01:32]} 30. Rd4 {[%clk 0:00:08]}  Re4 {[%clk 0:01:08]} 31. Rcd1 {[%clk 0:00:06]}  Ng4 {[%clk 0:00:50]} 32. Nxf3 {[%clk 0:00:06]}  Nxe3 {[%clk 0:00:39]} 33. fxe3 {[%clk 0:00:02]}  Qxf3 {[%clk 0:00:40]} 34. R1d2 {[%clk 0:00:01]}  Qxg3+ {[%clk 0:00:38]} 35. Kf1 {[%clk 0:00:01]}  Rxe3 {[%clk 0:00:36]} 0-1


[Site "https://www.chess.com"]

[Event "Titled Tuesday Blitz October 11 Early 2022"]
[White "Podetti, Davide"]
[Black "Evdokimov, Alexey"]
[WhiteFideId "893617"]
[BlackFideId "24162450"]
[WhiteElo "2160"]
[BlackElo "2154"]
[Result "1-0"]
[Round "04"]
[TimeControl "180+1"]
[Date "2022.10.12"]
[WhiteClock "0:00:49"]
[BlackClock "0:00:01"]

1. e4 {[%clk 0:03:00]}  c6 {[%clk 0:03:00]} 2. d4 {[%clk 0:03:00]}  d5 {[%clk 0:03:00]} 3. exd5 {[%clk 0:03:01]}  cxd5 {[%clk 0:03:01]} 4. Bd3 {[%clk 0:03:01]}  Nc6 {[%clk 0:02:59]} 5. c3 {[%clk 0:03:01]}  Nf6 {[%clk 0:02:59]} 6. Bf4 {[%clk 0:03:00]}  Bg4 {[%clk 0:02:59]} 7. Qb3 {[%clk 0:03:00]}  Qd7 {[%clk 0:02:59]} 8. Nd2 {[%clk 0:03:00]}  e6 {[%clk 0:02:59]} 9. Ngf3 {[%clk 0:03:00]}  Bxf3 {[%clk 0:02:58]} 10. Nxf3 {[%clk 0:03:01]}  Bd6 {[%clk 0:02:58]} 11. Bxd6 {[%clk 0:03:02]}  Qxd6 {[%clk 0:02:58]} 12. O-O {[%clk 0:03:02]}  O-O {[%clk 0:02:58]} 13. Rfe1 {[%clk 0:03:03]}  Rab8 {[%clk 0:02:57]} 14. Ne5 {[%clk 0:03:04]}  Nd7 {[%clk 0:02:51]} 15. f4 {[%clk 0:03:02]}  Rfc8 {[%clk 0:02:38]} 16. Qd1 {[%clk 0:02:57]}  g6 {[%clk 0:02:37]} 17. Qf3 {[%clk 0:02:51]}  b5 {[%clk 0:02:31]} 18. g4 {[%clk 0:02:47]}  b4 {[%clk 0:02:31]} 19. Nxd7 {[%clk 0:02:47]}  Qxd7 {[%clk 0:02:30]} 20. f5 {[%clk 0:02:48]}  bxc3 {[%clk 0:02:28]} 21. bxc3 {[%clk 0:02:48]}  Rb2 {[%clk 0:02:06]} 22. fxe6 {[%clk 0:02:43]}  fxe6 {[%clk 0:02:06]} 23. Rf1 {[%clk 0:02:42]}  Qc7 {[%clk 0:01:53]} 24. Be2 {[%clk 0:02:24]}  Qe7 {[%clk 0:01:24]} 25. a4 {[%clk 0:01:58]}  Rf8 {[%clk 0:01:21]} 26. Qe3 {[%clk 0:01:54]}  Rxf1+ {[%clk 0:01:14]} 27. Rxf1 {[%clk 0:01:55]}  Kg7 {[%clk 0:00:59]} 28. Bb5 {[%clk 0:01:51]}  Qd6 {[%clk 0:00:49]} 29. Rf4 {[%clk 0:01:45]}  g5 {[%clk 0:00:44]} 30. Rf2 {[%clk 0:01:41]}  Rb1+ {[%clk 0:00:20]} 31. Kg2 {[%clk 0:01:40]}  h6 {[%clk 0:00:19]} 32. Qf3 {[%clk 0:01:33]}  Nd8 {[%clk 0:00:02]} 33. Qf6+ {[%clk 0:01:25]}  Kh7 {[%clk 0:00:02]} 34. Be8 {[%clk 0:01:11]}  Re1 {[%clk 0:00:01]} 35. Qg6+ {[%clk 0:01:07]}  Kh8 {[%clk 0:00:01]} 36. Qxh6+ {[%clk 0:00:54]}  Kg8 {[%clk 0:00:01]} 37. Bg6 {[%clk 0:00:49]} 1-0


[Site "https://www.chess.com"]

[Event "Titled Tuesday Blitz October 11 Early 2022"]
[White "Polanco Nunez, Yoel Estarling"]
[Black "Marin Ramirez, Gerardo"]
[WhiteFideId "6401783"]
[BlackFideId "3901068"]
[WhiteElo "2132"]
[BlackElo "2041"]
[Result "1-0"]
[Round "04"]
[TimeControl "180+1"]
[Date "2022.10.12"]
[WhiteClock "0:01:32"]
[BlackClock "0:00:00"]

1. Nf3 {[%clk 0:03:00]}  d5 {[%clk 0:02:56]} 2. g3 {[%clk 0:03:01]}  c6 {[%clk 0:02:56]} 3. Bg2 {[%clk 0:03:02]}  Nf6 {[%clk 0:02:56]} 4. d4 {[%clk 0:03:02]}  Bf5 {[%clk 0:02:56]} 5. c4 {[%clk 0:03:02]}  e6 {[%clk 0:02:56]} 6. Nc3 {[%clk 0:03:02]}  Be7 {[%clk 0:02:54]} 7. O-O {[%clk 0:03:02]}  h6 {[%clk 0:02:50]} 8. h3 {[%clk 0:03:02]}  O-O {[%clk 0:02:49]} 9. g4 {[%clk 0:03:02]}  Bh7 {[%clk 0:02:48]} 10. Qb3 {[%clk 0:03:01]}  b6 {[%clk 0:02:46]} 11. Bf4 {[%clk 0:03:00]}  Nbd7 {[%clk 0:02:45]} 12. e3 {[%clk 0:02:56]}  dxc4 {[%clk 0:02:39]} 13. Qxc4 {[%clk 0:02:56]}  c5 {[%clk 0:02:39]} 14. Rfd1 {[%clk 0:02:50]}  cxd4 {[%clk 0:02:30]} 15. exd4 {[%clk 0:02:50]}  Rc8 {[%clk 0:02:27]} 16. Qa6 {[%clk 0:02:50]}  Ne4 {[%clk 0:02:01]} 17. Ne5 {[%clk 0:02:29]}  Nxc3 {[%clk 0:01:58]} 18. bxc3 {[%clk 0:02:30]}  Nxe5 {[%clk 0:01:54]} 19. Bxe5 {[%clk 0:02:28]}  Qd7 {[%clk 0:01:39]} 20. d5 {[%clk 0:02:26]}  Rc5 {[%clk 0:01:00]} 21. Bd4 {[%clk 0:02:19]}  Ra5 {[%clk 0:00:54]} 22. Qe2 {[%clk 0:02:17]}  exd5 {[%clk 0:00:41]} 23. c4 {[%clk 0:02:06]}  Bc5 {[%clk 0:00:05]} 24. Bc3 {[%clk 0:01:46]}  Ra3 {[%clk 0:00:04]} 25. Rxd5 {[%clk 0:01:40]}  Qc7 {[%clk 0:00:04]} 26. Be5 {[%clk 0:01:39]}  Qc8 {[%clk 0:00:00]} 27. Rad1 {[%clk 0:01:32]} 1-0


[Site "https://www.chess.com"]